Workbook

Sheet Результат
A1: Город | B1: Канал | C1: БА | D1: Тип продажи | E1: Точка продажи | F1: TVR БА | G1: TVR ЦА | H1: Affinity | I1: Share | J1: Cum.Reach % | K1: wTotal | L1: Prime | M1: CPP | N1: CPP TRP | O1: CPT | P1: Reached CPT | Z1: Frequency Distribution | AJ1: CPP/CPM (без НДС) | AW1: Коэффициенты | AY1: CPP c каналами | BB1: Варианты сплитов | BE1: Оценочный коэффициент | BH1: TRP | BK1: GRP'30 | BO1: натуральный | BZ1: натуральный с aff | CK1: мин СРР
G2: W 25+ | I2: W 25+ | J2: W 25+ | K2: W 25+ | P2: 1+ | Q2: 2+ | R2: 3+ | S2: 4+ | T2: 5+ | U2: 6+ | V2: 7+ | W2: 8+ | X2: 9+ | Y2: 10+ | Z2: 1+ | AA2: 2+ | AB2: 3+ | AC2: 4+ | AD2: 5+ | AE2: 6+ | AF2: 7+ | AG2: 8+ | AH2: 9+ | AI2: 10+ | AJ2: Январь | AK2: Февраль | AL2: Март | AM2: Апрель | AN2: Май | AO2: Июнь | AP2: Июль | AQ2: Август | AR2: Сентябрь | AS2: Октябрь | AT2: Ноябрь | AU2: Декабрь | AW2: Каналов | AX2: коэфф | AY2: Натуральный | AZ2: Нат. с aff | BA2: мин. СРР | BB2: Натуральный | BC2: Нат. с aff | BD2: мин. СРР | BE2: Натуральный | BF2: Нат. с aff | BG2: мин. СРР | BH2: Натуральный | BI2: Нат. с aff | BJ2: мин. СРР | BK2: Натуральный | BL2: Нат. с aff | BM2: мин. СРР | BO2: Кол-во каналов | BP2: CPP на ЦА | BQ2: Affinity сплита | BR2: Хр-ж | BS2: GRP'30 | BT2: TRP"30 | BU2: Оценка бюджета | BV2: Охват 5+ | BW2: OTS | BX2: CPP per Reach | BY2: CPP per OTS | BZ2: Кол-во каналов | CA2: CPP на ЦА | CB2: Affinity сплита | CC2: Хр-ж | CD2: GRP'30 | CE2: TRP"30 | CF2: Оценка бюджета | CG2: Охват 5+ | CH2: OTS | CI2: CPP per Reach | CJ2: CPP per OTS | CK2: Кол-во каналов | CL2: CPP на ЦА | CM2: Affinity сплита | CN2: Хр-ж | CO2: GRP'30 | CP2: TRP"30 | CQ2: Оценка бюджета | CR2: Охват 5+ | CS2: OTS | CT2: CPP per Reach | CU2: CPP per OTS
A3: Москва | B3: Первый | C3: All 14-59 | D3: GRP | E3: ВИ | F3: 1.46 | G3: 3.03 | H3: =G3/F3*100 -> 207.5342466 | I3: 14.31999969 | J3: 86.68000031 | K3: 6215.680176 | L3: 0.6 | M3: =AVERAGE(AJ3:AU3) ->  | N3: =M3/H3*100 ->  | O3: =M3*F3/(K3/100*G3) ->  | P3: =$O3/Z3*100 ->  | Z3: 86.68 | AA3: 83.76 | AB3: 81.95 | AC3: 80.81 | AD3: 79.53 | AE3: 78.85 | AF3: 77.24 | AG3: 75.64 | AH3: 74.56 | AI3: 73.84 | AW3: 1 | AX3: 0 | AY3: =$N3-(INDEX($AW3:$AX6,BO3,2)*$N3) ->  | AZ3: =$N3-(INDEX($AW3:$AX6,BO3,2)*$N3) ->  | BA3: =$N3-(INDEX($AW3:$AX6,BO3,2)*$N3) ->  | BB3: =$G3/SUM($G3:$G6) -> 0.422005571 | BC3: =$BF3/SUM($BF3:$BF6) -> 0.4167307433 | BD3: =IF(BG3<>"",$BG3/SUM($BG3:$BG6),0) ->  | BE3: =$H3*$H7+$I3*$I7 -> 110.9271231 | BF3: =$H3*$H7+$I3*$I7 -> 110.9271231 | BG3: =IF($P3<$P7,$BF3,"") -> 
A4: Москва | B4: Россия 1 | C4: All 25+ | D4: GRP | E4: ВИ | F4: 2.1 | G4: 2.82 | H4: =G4/F4*100 -> 134.2857143 | I4: 13.93000031 | J4: 82.48000336 | K4: 6215.680176 | L4: 0.6 | M4: =AVERAGE(AJ4:AU4) ->  | N4: =M4/H4*100 ->  | O4: =M4*F4/(K4/100*G4) ->  | Z4: 82.48 | AA4: 80.01 | AB4: 77.91 | AC4: 76.55 | AD4: 74.44 | AE4: 73.71 | AF4: 72.29 | AG4: 71.47 | AH4: 70.82 | AI4: 69.65 | AW4: 2 | AX4: 0.01 | AY4: =$N4-(INDEX($AW3:$AX6,BO3,2)*$N4) ->  | AZ4: =$N4-(INDEX($AW3:$AX6,BO3,2)*$N4) ->  | BA4: =$N4-(INDEX($AW3:$AX6,BO3,2)*$N4) ->  | BB4: =$G4/SUM($G3:$G6) -> 0.3927576602 | BC4: =$BF4/SUM($BF3:$BF6) -> 0.278408216 | BD4: =IF(BG4<>"",$BG4/SUM($BG3:$BG6),0) ->  | BE4: =$H4*$H7+$I4*$I7 -> 74.1078573 | BF4: =$H4*$H7+$I4*$I7 -> 74.1078573 | BG4: =IF($P4<$P7,$BF4,"") -> 
A5: Москва | B5: НТВ | C5: All 18+ | D5: GRP | E5: Алькасар | F5: 0.28 | G5: 0.23 | H5: =G5/F5*100 -> 82.14285714 | I5: 1.080000043 | J5: 45.86999893 | K5: 6215.680176 | L5: 0.6 | M5: =AVERAGE(AJ5:AU5) ->  | N5: =M5/H5*100 ->  | O5: =M5*F5/(K5/100*G5) ->  | Z5: 45.87 | AA5: 39.17 | AB5: 32.03 | AC5: 28.08 | AD5: 24.59 | AE5: 22.1 | AF5: 20.79 | AG5: 19.3 | AH5: 17.77 | AI5: 16.4 | AW5: 3 | AX5: 0.015 | AY5: =$N5-(INDEX($AW3:$AX6,BO3,2)*$N5) ->  | AZ5: =$N5-(INDEX($AW3:$AX6,BO3,2)*$N5) ->  | BA5: =$N5-(INDEX($AW3:$AX6,BO3,2)*$N5) ->  | BB5: =$G5/SUM($G3:$G6) -> 0.03203342618 | BC5: =$BF5/SUM($BF3:$BF6) -> 0.1563257126 | BD5: =IF(BG5<>"",$BG5/SUM($BG3:$BG6),0) ->  | BE5: =$H5*$H7+$I5*$I7 -> 41.61142859 | BF5: =$H5*$H7+$I5*$I7 -> 41.61142859 | BG5: =IF($P5<$P7,$BF5,"") -> 
A6: Москва | B6: ТНТ | C6: All 14-44 | D6: GRP | E6: Алькасар | F6: 1.49 | G6: 1.1 | H6: =G6/F6*100 -> 73.82550336 | I6: 5.25 | J6: 59.70999908 | K6: 6215.680176 | L6: 0.6 | M6: =AVERAGE(AJ6:AU6) ->  | N6: =M6/H6*100 ->  | O6: =M6*F6/(K6/100*G6) ->  | Z6: 59.71 | AA6: 56.51 | AB6: 54.23 | AC6: 52.01 | AD6: 50.77 | AE6: 49.35 | AF6: 48.64 | AG6: 47.24 | AH6: 45.91 | AI6: 44.56 | AW6: 4 | AX6: 0.0195 | AY6: =$N6-(INDEX($AW3:$AX6,BO3,2)*$N6) ->  | AZ6: =$N6-(INDEX($AW3:$AX6,BO3,2)*$N6) ->  | BA6: =$N6-(INDEX($AW3:$AX6,BO3,2)*$N6) ->  | BB6: =$G6/SUM($G3:$G6) -> 0.1532033426 | BC6: =$BF6/SUM($BF3:$BF6) -> 0.1485353282 | BD6: =IF(BG6<>"",$BG6/SUM($BG3:$BG6),0) ->  | BE6: =$H6*$H7+$I6*$I7 -> 39.53775168 | BF6: =$H6*$H7+$I6*$I7 -> 39.53775168 | BG6: =IF($P6<$P7,$BF6,"") -> 
A7: МОСКВА | B7: TOTAL | H7: 0.5 | I7: 0.5 | M7: =AVERAGE(M3:M6) ->  | N7: =AVERAGE(N3:N6) ->  | O7: =AVERAGE(O3:O6) ->  | P7: =AVERAGE(P3:P6) ->  | AY7: =SUM(AY3:AY6) ->  | BB7: 1 | BC7: 1 | BE7: 266.1841607 | BF7: 266.1841607 | BO7: 3 | BP7: 153636.7514 | BQ7: 86.71451455 | BR7: 20 | BS7: 450.3646948 | BT7: 390.5315588 | BU7: 60000000 | BV7: 50.41 | BW7: 89983.93 | BX7: 1190240.032 | BY7: 666.785725 | BZ7: 19 | CA7: 132793.8756 | CB7: 88.6067751 | CC7: 20 | CD7: 509.9249639 | CE7: 451.8280659 | CF7: 60000 | CG7: 52.51 | CH7: 104335.89 | CI7: 1142639.497 | CJ7: 575.0657803 | CK7: 10 | CL7: 136745.6766 | CM7: 98.99286748 | CN7: 20 | CO7: 443.234688 | CP7: 438.7707273 | CQ7: 60000000 | CR7: 50.38 | CS7: 101064.3 | CT7: 1190948.789 | CU7: 593.6814483
A8: Самара | B8: Первый | C8: All 18+ | D8: GRP | E8: ВИ | F8: 2.06 | G8: 3.03 | H8: =G8/F8*100 -> 147.0873786 | I8: 14.31999969 | J8: 86.68000031 | K8: 6215.680176 | L8: 0.6 | M8: =AVERAGE(AJ8:AU8) ->  | N8: =M8/H8*100 ->  | O8: =M8*F8/(K8/100*G8) ->  | P8: =$O8/Z8*100 ->  | Z8: 86.68 | AA8: 83.76 | AB8: 81.95 | AC8: 80.81 | AD8: 79.53 | AE8: 78.85 | AF8: 77.24 | AG8: 75.64 | AH8: 74.56 | AI8: 73.84 | AW8: 1 | AX8: 0 | AY8: =$N8-(INDEX($AW8:$AX10,BO8,2)*$N8) ->  | AZ8: =$N8-(INDEX($AW8:$AX10,BO8,2)*$N8) ->  | BA8: =$N8-(INDEX($AW8:$AX10,BO8,2)*$N8) ->  | BB8: =$G8/SUM($G8:$G10) -> 0.4018567639 | BC8: =$BF8/SUM($BF8:$BF10) -> 0.3625340387 | BD8: =IF(BG8<>"",$BG8/SUM($BG8:$BG10),0) ->  | BE8: =$H8*$H11+$I8*$I11 -> 80.70368917 | BF8: =$H8*$H11+$I8*$I11 -> 80.70368917 | BG8: =IF($P8<$P11,$BF8,"") -> 
A9: Самара | B9: Россия 1 | C9: All 18+ | D9: GRP | E9: ВИ | F9: 1.94 | G9: 2.82 | H9: =G9/F9*100 -> 145.3608247 | I9: 13.93000031 | J9: 82.48000336 | K9: 6215.680176 | L9: 0.6 | M9: =AVERAGE(AJ9:AU9) ->  | N9: =M9/H9*100 ->  | O9: =M9*F9/(K9/100*G9) ->  | Z9: 82.48 | AA9: 80.01 | AB9: 77.91 | AC9: 76.55 | AD9: 74.44 | AE9: 73.71 | AF9: 72.29 | AG9: 71.47 | AH9: 70.82 | AI9: 69.65 | AW9: 2 | AX9: 0.01 | AY9: =$N9-(INDEX($AW8:$AX10,BO8,2)*$N9) ->  | AZ9: =$N9-(INDEX($AW8:$AX10,BO8,2)*$N9) ->  | BA9: =$N9-(INDEX($AW8:$AX10,BO8,2)*$N9) ->  | BB9: =$G9/SUM($G8:$G10) -> 0.374005305 | BC9: =$BF9/SUM($BF8:$BF10) -> 0.3577800886 | BD9: =IF(BG9<>"",$BG9/SUM($BG8:$BG10),0) ->  | BE9: =$H9*$H11+$I9*$I11 -> 79.64541252 | BF9: =$H9*$H11+$I9*$I11 -> 79.64541252 | BG9: =IF($P9<$P11,$BF9,"") -> 
A10: Самара | B10: НТВ | C10: All 18+ | D10: GRP | E10: Алькасар | F10: 1.45 | G10: 1.69 | H10: =G10/F10*100 -> 116.5517241 | I10: 7.96999979 | J10: 77.97000122 | K10: 6215.680176 | L10: 0.6 | M10: =AVERAGE(AJ10:AU10) ->  | N10: =M10/H10*100 ->  | O10: =M10*F10/(K10/100*G10) ->  | Z10: 77.97 | AA10: 74.16 | AB10: 72.33 | AC10: 70.51 | AD10: 69.27 | AE10: 68.44 | AF10: 67.25 | AG10: 65.55 | AH10: 64.76 | AI10: 63.33 | AW10: 3 | AX10: 0.015 | AY10: =$N10-(INDEX($AW8:$AX10,BO8,2)*$N10) ->  | AZ10: =$N10-(INDEX($AW8:$AX10,BO8,2)*$N10) ->  | BA10: =$N10-(INDEX($AW8:$AX10,BO8,2)*$N10) ->  | BB10: =$G10/SUM($G8:$G10) -> 0.224137931 | BC10: =$BF10/SUM($BF8:$BF10) -> 0.2796858727 | BD10: =IF(BG10<>"",$BG10/SUM($BG8:$BG10),0) ->  | BE10: =$H10*$H11+$I10*$I11 -> 62.26086196 | BF10: =$H10*$H11+$I10*$I11 -> 62.26086196 | BG10: =IF($P10<$P11,$BF10,"") -> 
A11: САМАРА | B11: TOTAL | H11: 0.5 | I11: 0.5 | M11: =AVERAGE(M8:M10) ->  | N11: =AVERAGE(N8:N10) ->  | O11: =AVERAGE(O8:O10) ->  | P11: =AVERAGE(P8:P10) ->  | AY11: =SUM(AY8:AY10) ->  | BB11: 1 | BC11: 1 | BE11: 222.6099637 | BF11: 222.6099637 | BO11: 19 | BP11: 153636.7514 | BQ11: 86.71451455 | BR11: 20 | BS11: 450.3646948 | BT11: 390.5315588 | BU11: 60000000 | BV11: 50.41 | BW11: 89983.93 | BX11: 1190240.032 | BY11: 666.785725 | BZ11: 19 | CA11: 132793.8756 | CB11: 88.6067751 | CC11: 20 | CD11: 509.9249639 | CE11: 451.8280659 | CF11: 60000000 | CG11: 52.51 | CH11: 104335.89 | CI11: 1142639.497 | CJ11: 575.0657803 | CK11: 10 | CL11: 136745.6766 | CM11: 98.99286748 | CN11: 20 | CO11: 443.234688 | CP11: 438.7707273 | CQ11: 60000000 | CR11: 50.38 | CS11: 101064.3 | CT11: 1190948.789 | CU11: 593.6814483
A12: Екатеринбург | B12: Первый | C12: All 18+ | D12: GRP | E12: ВИ | F12: 2.06 | G12: 3.03 | H12: =G12/F12*100 -> 147.0873786 | I12: 14.31999969 | J12: 86.68000031 | K12: 6215.680176 | L12: 0.6 | M12: =AVERAGE(AJ12:AU12) ->  | N12: =M12/H12*100 ->  | O12: =M12*F12/(K12/100*G12) ->  | P12: =$O12/Z12*100 ->  | Z12: 86.68 | AA12: 83.76 | AB12: 81.95 | AC12: 80.81 | AD12: 79.53 | AE12: 78.85 | AF12: 77.24 | AG12: 75.64 | AH12: 74.56 | AI12: 73.84 | AW12: 1 | AX12: 0 | AY12: =$N12-(INDEX($AW12:$AX14,BO12,2)*$N12) ->  | AZ12: =$N12-(INDEX($AW12:$AX14,BO12,2)*$N12) ->  | BA12: =$N12-(INDEX($AW12:$AX14,BO12,2)*$N12) ->  | BB12: =$G12/SUM($G12:$G14) -> 0.4018567639 | BC12: =$BF12/SUM($BF12:$BF14) -> 0.3243272874 | BD12: =IF(BG12<>"",$BG12/SUM($BG12:$BG14),0) ->  | BE12: =$H12*$H15+$I12*$I15 -> 80.70368917 | BF12: =$H12*$H15+$I12*$I15 -> 80.70368917 | BG12: =IF($P12<$P15,$BF12,"") -> 
A13: Екатеринбург | B13: Россия 1 | C13: All 18+ | D13: GRP | E13: ВИ | F13: 1.94 | G13: 2.82 | H13: =G13/F13*100 -> 145.3608247 | I13: 13.93000031 | J13: 82.48000336 | K13: 6215.680176 | L13: 0.6 | M13: =AVERAGE(AJ13:AU13) ->  | N13: =M13/H13*100 ->  | O13: =M13*F13/(K13/100*G13) ->  | Z13: 82.48 | AA13: 80.01 | AB13: 77.91 | AC13: 76.55 | AD13: 74.44 | AE13: 73.71 | AF13: 72.29 | AG13: 71.47 | AH13: 70.82 | AI13: 69.65 | AW13: 2 | AX13: 0.01 | AY13: =$N13-(INDEX($AW12:$AX14,BO12,2)*$N13) ->  | AZ13: =$N13-(INDEX($AW12:$AX14,BO12,2)*$N13) ->  | BA13: =$N13-(INDEX($AW12:$AX14,BO12,2)*$N13) ->  | BB13: =$G13/SUM($G12:$G14) -> 0.374005305 | BC13: =$BF13/SUM($BF12:$BF14) -> 0.3200743468 | BD13: =IF(BG13<>"",$BG13/SUM($BG12:$BG14),0) ->  | BE13: =$H13*$H15+$I13*$I15 -> 79.64541252 | BF13: =$H13*$H15+$I13*$I15 -> 79.64541252 | BG13: =IF($P13<$P15,$BF13,"") -> 
A14: Екатеринбург | B14: НТВ | C14: All 25-59 | D14: GRP | E14: Алькасар | F14: 1 | G14: 1.69 | H14: =G14/F14*100 -> 169 | I14: 7.96999979 | J14: 77.97000122 | K14: 6215.680176 | L14: 0.6 | M14: =AVERAGE(AJ14:AU14) ->  | N14: =M14/H14*100 ->  | O14: =M14*F14/(K14/100*G14) ->  | Z14: 77.97 | AA14: 74.16 | AB14: 72.33 | AC14: 70.51 | AD14: 69.27 | AE14: 68.44 | AF14: 67.25 | AG14: 65.55 | AH14: 64.76 | AI14: 63.33 | AW14: 3 | AX14: 0.015 | AY14: =$N14-(INDEX($AW12:$AX14,BO12,2)*$N14) ->  | AZ14: =$N14-(INDEX($AW12:$AX14,BO12,2)*$N14) ->  | BA14: =$N14-(INDEX($AW12:$AX14,BO12,2)*$N14) ->  | BB14: =$G14/SUM($G12:$G14) -> 0.224137931 | BC14: =$BF14/SUM($BF12:$BF14) -> 0.3555983659 | BD14: =IF(BG14<>"",$BG14/SUM($BG12:$BG14),0) ->  | BE14: =$H14*$H15+$I14*$I15 -> 88.4849999 | BF14: =$H14*$H15+$I14*$I15 -> 88.4849999 | BG14: =IF($P14<$P15,$BF14,"") -> 
A15: ЕКАТЕРИНБУРГ | B15: TOTAL | H15: 0.5 | I15: 0.5 | M15: =AVERAGE(M12:M14) ->  | N15: =AVERAGE(N12:N14) ->  | O15: =AVERAGE(O12:O14) ->  | P15: =AVERAGE(P12:P14) ->  | AY15: =SUM(AY12:AY14) ->  | BB15: 1 | BC15: 1 | BE15: 248.8341016 | BF15: 248.8341016 | BO15: 19 | BP15: 153636.7514 | BQ15: 86.71451455 | BR15: 20 | BS15: 450.3646948 | BT15: 390.5315588 | BU15: 60000000 | BV15: 50.41 | BW15: 89983.93 | BX15: 1190240.032 | BY15: 666.785725 | BZ15: 19 | CA15: 132793.8756 | CB15: 88.6067751 | CC15: 20 | CD15: 509.9249639 | CE15: 451.8280659 | CF15: 60000000 | CG15: 52.51 | CH15: 104335.89 | CI15: 1142639.497 | CJ15: 575.0657803 | CK15: 10 | CL15: 136745.6766 | CM15: 98.99286748 | CN15: 20 | CO15: 443.234688 | CP15: 438.7707273 | CQ15: 60000000 | CR15: 50.38 | CS15: 101064.3 | CT15: 1190948.789 | CU15: 593.6814483
A16: 1 | B16: 2 | C16: 3 | D16: 4 | E16: 5 | F16: 6 | G16: 7 | H16: 8 | I16: 9 | J16: 10 | K16: 11 | L16: 12 | M16: 13 | N16: 14 | O16: 15 | P16: 16 | Q16: 17 | R16: 18 | S16: 19 | T16: 20 | U16: 21 | V16: 22 | W16: 23 | X16: 24 | Y16: 25 | Z16: 26 | AA16: 27 | AB16: 28 | AC16: 29 | AD16: 30 | AE16: 31 | AF16: 32 | AG16: 33 | AH16: 34 | AI16: 35 | AJ16: 36 | AK16: 37 | AL16: 38 | AM16: 39 | AN16: 40 | AO16: 41 | AP16: 42 | AQ16: 43 | AR16: 44 | AS16: 45 | AT16: 46 | AU16: 47 | AV16: 48 | AW16: 49 | AX16: 50 | AY16: 51 | AZ16: 52 | BA16: 53 | BB16: 54 | BC16: 55 | BD16: 56 | BE16: 57 | BF16: 58 | BG16: 59 | BH16: 60 | BI16: 61 | BJ16: 62 | BK16: 63 | BL16: 64 | BM16: 65 | BN16: 66 | BO16: 67 | BP16: 68 | BQ16: 69 | BR16: 70 | BS16: 71 | BT16: 72 | BU16: 73 | BV16: 74 | BW16: 75 | BX16: 76 | BY16: 77 | BZ16: 78 | CA16: 79 | CB16: 80 | CC16: 81 | CD16: 82 | CE16: 83 | CF16: 84 | CG16: 85 | CH16: 86 | CI16: 87 | CJ16: 88 | CK16: 89 | CL16: 90 | CM16: 91 | CN16: 92 | CO16: 93 | CP16: 94 | CQ16: 95 | CR16: 96 | CS16: 97 | CT16: 98 | CU16: 99
BO17: 1 | BP17: 2 | BQ17: 3 | BR17: 4 | BS17: 5 | BT17: 6 | BU17: 7 | BV17: 8 | BW17: 9 | BX17: 10 | BY17: 11 | BZ17: 12 | CA17: 13 | CB17: 14 | CC17: 15 | CD17: 16 | CE17: 17 | CF17: 18 | CG17: 19 | CH17: 20 | CI17: 21 | CJ17: 22 | CK17: 23 | CL17: 24 | CM17: 25 | CN17: 26 | CO17: 27 | CP17: 28 | CQ17: 29 | CR17: 30 | CS17: 31 | CT17: 32 | CU17: 33
A18: Пример данных | F18: Пример данных | BT18: 5
A19: Итоговые данные | B19: натуральный | C19: нат с aff | D19: мин СРР | F19: Итоговые данные | G19: натуральный | H19: нат с aff | I19: мин СРР
A20: Кол-во каналов | B20: 3 | C20: 19 | D20: 10 | F20: Кол-во каналов | G20: 19 | H20: 19 | I20: 10
A21: CPP на ЦА | B21: 15 3636,75 | C21: 13 2793,88 | D21: 13 6745,68 | F21: CPP на ЦА | G21: 153636.7514 | H21: 132793.8756 | I21: 136745.6766
A22: Affinity сплита | B22: 87 | C22: 89 | D22: 99 | F22: Affinity сплита | G22: 86.71451455 | H22: 88.6067751 | I22: 98.99286748 | BS22: Итоговые данные | BT22: натуральный | BU22: нат с aff | BV22: мин СРР
A23: Хронометраж | B23: 20 | C23: 20 | D23: 20 | F23: Хронометраж | G23: 20 | H23: 20 | I23: 20 | BS23: Кол-во каналов | BT23: 19 | BU23: 19 | BV23: 10
A24: GRP '30' | B24: 450,36 | C24: 509,92 | D24: 443,23 | F24: GRP'30 | G24: 450.3646948 | H24: 509.9249639 | I24: 443.234688 | BS24: CPP на ЦА | BT24: 153636.7514 | BU24: 132793.8756 | BV24: 136745.6766
A25: TRP '30' | B25: 390,53 | C25: 451,83 | D25: 438,77 | F25: TRP"30 | G25: 390.5315588 | H25: 451.8280659 | I25: 438.7707273 | BS25: Affinity сплита | BT25: 86.71451455 | BU25: 88.6067751 | BV25: 98.99286748
A26: Оценка бюджета | B26: 60 000 000 | C26: 60 000 | D26: 60 000 000 | F26: Оценка бюджета | G26: 60000000 | H26: 60000000 | I26: 60000000 | BS26: Хронометраж | BT26: 20 | BU26: 20 | BV26: 20
A27: Охват 5+ | B27: 50,41 | C27: 52,51 | D27: 50,38 | F27: Охват 5+ | G27: 50.41 | H27: 52.51 | I27: 50.38 | BS27: GRP'30 | BT27: 450.3646948 | BU27: 509.9249639 | BV27: 443.234688
A28: OTS | B28: 89 984 | C28: 104 336 | D28: 101 064 | F28: OTS | G28: 89983.93 | H28: 104335.89 | I28: 101064.3 | BS28: TRP"30 | BT28: 390.5315588 | BU28: 451.8280659 | BV28: 438.7707273
A29: CPP per Reach | B29: 1 190 240 | C29: 1 142 639 | D29: 1 190 949 | F29: CPP per Reach | G29: 1190240.032 | H29: 1142639.497 | I29: 1190948.789 | BS29: Оценка бюджета | BT29: 60000000 | BU29: 60000000 | BV29: 60000000
A30: CPP per OTS | B30: 666,79 | C30: 575,07 | D30: 593,68 | F30: CPP per OTS | G30: 666.785725 | H30: 575.0657803 | I30: 593.6814483 | BS30: Охват 5+ | BT30: 50.41 | BU30: 52.51 | BV30: 50.38
BS31: OTS | BT31: 89983.93 | BU31: 104335.89 | BV31: 101064.3
BS32: CPP per Reach | BT32: 1190240.032 | BU32: 1142639.497 | BV32: 1190948.789
BS33: CPP per OTS | BT33: 666.785725 | BU33: 575.0657803 | BV33: 593.6814483
